bitfinex/quotes_SOLUSD_20230120
["timestamp","ask_amount","ask_price","bid_price","bid_amount"]
[1674239982751,42.83,22.848,22.83,26.34]
[1674239982962,42.83,22.848,22.823,10.0]
[1674239983176,42.83,22.848,22.821,10.0]
[1674239983177,10.0,22.846,22.821,10.0]
[1674239983393,32.84,22.845,22.821,10.0]
[1674239983591,10.0,22.844,22.82,96.4470801]
[1674239983798,10.0,22.844,22.82,60.8041239]
[1674239984126,50.8,22.843,22.82,26.41]
[1674239984316,50.8,22.843,22.815,10.0]
[1674239984533,50.8,22.843,22.81,26.1]
[1674239984534,23.75576951,22.842,22.81,26.1]
[1674239984742,10.0,22.84,22.811,10.0]
[1674239984953,33.81,22.839,22.811,10.0]
[1674239985171,134.3629,22.838,22.811,10.0]
[1674239985387,32.85,22.837,22.811,44.3941239]
[1674239985599,32.85,22.837,22.811,49.4524039]
[1674239985912,10.0,22.835,22.811,49.4524039]
[1674239986118,10.0,22.833,22.813,10.0]
[1674239986316,10.0,22.833,22.814,20.0]
[1674239986521,49.86,22.832,22.812,20.0]
[1674239986749,10.0,22.831,22.812,20.0]
[1674239986946,33.82,22.83,22.812,20.0]
[1674239987156,32.86,22.83,22.812,20.0]
[1674239987376,32.86,22.83,22.813,10.0]
[1674239987584,32.86,22.83,22.814,20.0]
[1674239987797,10.0,22.829,22.814,20.0]
[1674239989483,32.86,22.83,22.813,44.3941239]
[1674239989688,10.0,22.831,22.815,10.0]
[1674239989895,10.0,22.831,22.815,44.3941239]
[1674239990108,10.0,22.831,22.816,37.96]
[1674239990518,10.0,22.831,22.816,20.0]
[1674239990730,10.0,22.831,22.811,20.0]
[1674239990960,10.0,22.829,22.811,20.0]
[1674239991490,10.0,22.829,22.812,10.0]
[1674239991815,10.0,22.829,22.813,20.0]
[1674239993156,10.0,22.829,22.814,17.0]
[1674239993372,10.0,22.831,22.815,20.0]
[1674239993597,10.0,22.831,22.816,17.96]
[1674239993792,10.0,22.831,22.817,20.0]
[1674239995263,144.7955,22.836,22.818,17.0]
[1674239995479,10.0,22.84,22.821,10.0]
[1674239995805,10.0,22.837,22.822,37.96]
[1674239996022,10.0,22.837,22.823,10.0]
[1674239996332,10.0,22.837,22.824,37.0]
[1674239996849,10.0,22.84,22.824,20.0]
[1674239997172,108.5189,22.847,22.83,26.34]
[1674239997361,108.5189,22.847,22.831,20.96]
[1674239997572,108.5189,22.847,22.831,37.96]
[1674239997783,108.5189,22.847,22.832,10.0]
[1674239997994,108.5189,22.847,22.833,37.96]
[1674239998200,10.0,22.849,22.833,37.96]
[1674239998414,10.0,22.849,22.834,10.0]
[1674239998643,10.0,22.849,22.835,37.96]
[1674239998851,10.0,22.849,22.835,20.0]
[1674239999255,10.0,22.849,22.833,20.0]
[1674239999691,10.0,22.849,22.834,10.0]
[1674239999908,10.0,22.849,22.835,37.96]
[1674240000645,10.0,22.849,22.836,10.0]
[1674240000826,10.0,22.854,22.837,37.96]
[1674240001043,10.0,22.854,22.84,26.34]
[1674240001261,10.0,22.854,22.841,17.96]
[1674240002237,10.0,22.854,22.84,26.34]
[1674240002451,10.0,22.854,22.837,20.0]
[1674240002654,10.0,22.854,22.841,0.96]
[1674240002866,10.0,22.854,22.841,37.96]
[1674240004646,10.0,22.854,22.842,10.0]
[1674240004861,10.0,22.854,22.843,37.96]
[1674240005471,10.0,22.857,22.843,37.96]
[1674240005704,10.0,22.857,22.844,10.0]
[1674240005892,10.0,22.857,22.845,17.96]
[1674240006105,10.0,22.857,22.846,20.0]
[1674240006323,10.0,22.857,22.847,17.0]
[1674240006537,10.0,22.857,22.848,0.96]
[1674240006749,10.0,22.86,22.85,26.34]
[1674240007064,10.0,22.862,22.85,26.34]
[1674240007065,10.0,22.862,22.851,17.96]
[1674240007264,112.1649,22.867,22.852,20.0]
[1674240007467,10.0,22.877,22.853,10.96]
[1674240007699,32.79,22.876,22.854,20.0]
[1674240008009,10.0,22.875,22.855,27.96]
[1674240008223,10.0,22.875,22.856,20.0]
[1674240008414,10.0,22.877,22.86,26.34]
[1674240008739,10.0,22.877,22.861,37.96]
[1674240009367,42.79,22.877,22.861,17.96]
[1674240009581,42.79,22.877,22.861,17.0]
[1674240010522,42.79,22.877,22.86,26.34]
[1674240010740,10.0,22.876,22.85,26.1]
[1674240011061,10.0,22.874,22.855,10.0]
[1674240011268,10.0,22.874,22.857,10.0]
[1674240011474,10.0,22.874,22.856,37.96]
[1674240011475,10.0,22.872,22.856,20.0]
[1674240011682,10.0,22.872,22.858,17.96]
[1674240012004,10.0,22.872,22.856,20.0]
[1674240012241,117.067,22.873,22.859,0.96]
[1674240012550,10.0,22.872,22.859,0.96]
[1674240012757,10.0,22.872,22.858,0.96]
[1674240012946,10.0,22.876,22.86,26.34]
[1674240013157,10.0,22.876,22.861,37.96]
[1674240013384,10.0,22.876,22.862,10.0]
[1674240013605,10.0,22.876,22.863,17.96]
[1674240013797,10.0,22.876,22.864,20.0]
[1674240014005,10.0,22.876,22.865,17.96]
[1674240014215,10.0,22.876,22.866,20.0]
[1674240014430,119.1365,22.883,22.867,17.96]
[1674240014640,42.78,22.882,22.867,17.96]
[1674240015175,10.0,22.882,22.867,17.96]
[1674240015384,10.0,22.882,22.867,17.0]
[1674240015570,10.0,22.882,22.868,0.96]
[1674240015783,10.0,22.882,22.866,20.0]
[1674240016104,10.0,22.882,22.864,20.0]
[1674240016315,10.0,22.882,22.865,0.96]
[1674240016837,10.0,22.882,22.864,20.0]
[1674240017257,42.79,22.881,22.864,20.0]
[1674240017482,10.0,22.88,22.865,17.0]
[1674240017701,127.6339,22.88,22.866,20.0]
[1674240017884,127.6339,22.88,22.857,43.00818019]
[1674240018093,50.75,22.878,22.85,26.1]
[1674240018321,10.0,22.877,22.852,10.0]
[1674240018524,32.79,22.876,22.853,43.00818019]
[1674240018735,10.0,22.875,22.854,10.0]
[1674240018942,32.8,22.874,22.854,10.0]
[1674240019167,10.0,22.873,22.855,8.61284469]
[1674240019367,10.0,22.871,22.855,8.61284469]
[1674240019579,32.8,22.87,22.855,8.61284469]
[1674240019803,10.0,22.871,22.855,51.62102488]
[1674240019804,10.0,22.869,22.855,51.62102488]
[1674240020108,10.0,22.875,22.86,26.34]
[1674240020432,10.0,22.878,22.861,10.0]
[1674240020618,10.0,22.878,22.862,0.96]
[1674240020832,10.0,22.878,22.862,20.96]
[1674240021038,10.0,22.878,22.863,17.0]
[1674240021365,10.0,22.878,22.864,20.0]
[1674240021579,32.79,22.876,22.864,20.0]
[1674240021764,10.0,22.875,22.864,20.0]
[1674240022185,10.0,22.875,22.862,20.0]
[1674240023131,10.0,22.875,22.863,26.57284469]
[1674240023556,10.0,22.875,22.864,20.0]
[1674240023790,10.0,22.875,22.865,17.0]
[1674240024191,10.0,22.875,22.86,26.34]
[1674240024399,10.0,22.873,22.858,8.61284469]
[1674240025879,10.0,22.873,22.859,17.0]
[1674240026724,32.8,22.872,22.859,17.0]
[1674240026922,32.8,22.872,22.858,8.61284469]
[1674240026923,10.0,22.871,22.858,8.61284469]
[1674240027554,10.0,22.871,22.85,36.34]
[1674240027775,32.8,22.87,22.852,8.61284469]
[1674240027996,10.0,22.869,22.853,20.0]
[1674240028515,127.4413,22.869,22.854,8.61284469]
[1674240028704,127.4413,22.869,22.855,20.0]
[1674240029140,10.0,22.868,22.856,25.61284469]
[1674240029357,10.0,22.868,22.856,8.61284469]
[1674240029549,10.0,22.868,22.857,20.0]
[1674240030714,10.0,22.868,22.854,8.61284469]
[1674240030918,10.0,22.868,22.855,20.0]
[1674240031455,10.0,22.868,22.856,8.61284469]
[1674240031661,10.0,22.868,22.857,17.0]
[1674240031858,10.0,22.868,22.857,37.0]
[1674240032493,10.0,22.873,22.858,8.61284469]
[1674240032834,10.0,22.873,22.86,26.34]
[1674240033027,10.0,22.873,22.861,17.96]
[1674240033556,10.0,22.873,22.861,17.0]
[1674240033970,10.0,22.873,22.862,0.96]
[1674240035026,10.0,22.877,22.863,9.13813877]
[1674240035234,10.0,22.877,22.864,37.96]
[1674240035657,10.0,22.877,22.865,9.13813877]
[1674240035854,10.0,22.877,22.866,17.96]
[1674240036063,10.0,22.877,22.867,20.0]
[1674240036696,10.0,22.877,22.866,20.0]
[1674240036905,10.0,22.877,22.861,20.0]
[1674240037140,10.0,22.877,22.85,36.1]
[1674240037346,10.0,22.875,22.859,9.13813877]
[1674240038396,10.0,22.875,22.85,75.37640019]
[1674240038613,32.8,22.874,22.85,75.37640019]
[1674240038802,10.0,22.873,22.853,9.13813877]
[1674240039019,32.8,22.872,22.853,9.13813877]
[1674240039232,10.0,22.873,22.853,9.13813877]
[1674240039850,10.0,22.873,22.854,20.0]
[1674240040061,32.8,22.872,22.854,20.0]
[1674240040266,10.0,22.871,22.855,9.13813877]
[1674240040706,10.0,22.871,22.856,20.0]
[1674240040905,10.0,22.871,22.857,10.0]
[1674240041118,10.0,22.871,22.857,19.13813877]
[1674240041427,9.5,22.871,22.858,10.09813877]
[1674240041759,9.5,22.871,22.859,17.0]
[1674240041961,9.5,22.871,22.86,0.96]
[1674240042284,10.0,22.875,22.86,57.3]
[1674240042498,10.0,22.875,22.861,26.13813877]
[1674240042686,10.0,22.875,22.862,20.96]
[1674240042892,10.0,22.875,22.863,17.0]
[1674240043109,10.0,22.875,22.864,20.96]
[1674240043449,10.0,22.875,22.865,17.0]
[1674240043663,10.0,22.875,22.866,20.0]
[1674240043864,10.0,22.875,22.867,17.0]
[1674240044716,10.0,22.875,22.866,29.13813877]
[1674240046085,10.0,22.875,22.867,17.96]
[1674240046403,10.0,22.875,22.868,9.13813877]
[1674240046605,10.0,22.875,22.869,17.96]
[1674240046927,10.0,22.875,22.868,9.13813877]
[1674240047137,10.0,22.875,22.87,17.0]
[1674240047352,9.5,22.875,22.869,17.96]
[1674240047537,9.5,22.875,22.869,17.0]
[1674240047960,10.0,22.877,22.867,17.0]
[1674240048175,10.0,22.877,22.87,27.3]
[1674240048391,10.0,22.877,22.871,17.0]
[1674240048607,10.0,22.877,22.872,0.96]
[1674240049134,10.0,22.877,22.871,17.0]
[1674240050480,10.0,22.877,22.87,26.34]
[1674240050693,10.0,22.877,22.866,29.66349882]
[1674240050936,10.0,22.877,22.866,20.0]
[1674240051124,10.0,22.877,22.862,20.0]
[1674240051533,10.0,22.877,22.863,11.23953938]
[1674240051747,10.0,22.877,22.864,20.0]
[1674240051954,10.0,22.877,22.865,10.0]
[1674240052181,10.0,22.877,22.866,37.0]
[1674240052369,10.0,22.881,22.867,0.96]
[1674240052897,10.0,22.881,22.868,11.23953938]
[1674240053321,32.79,22.88,22.86,55.69237723]
[1674240053533,144.2219,22.88,22.85,36.34]
[1674240053765,144.2219,22.88,22.86,26.34]
[1674240053975,10.0,22.879,22.861,63.85691913]
[1674240054279,32.79,22.878,22.862,10.0]
[1674240054471,10.0,22.877,22.862,27.33725947]
[1674240054680,10.0,22.877,22.862,66.60103974]
[1674240054886,10.0,22.877,22.863,5.04678]
[1674240055101,10.0,22.877,22.864,27.0]
[1674240055311,10.0,22.877,22.865,0.96]
[1674240055542,10.0,22.877,22.864,39.29025947]
[1674240055543,10.0,22.877,22.864,12.29025947]
[1674240055757,10.0,22.877,22.865,20.0]
[1674240056149,32.79,22.876,22.85,36.34]
[1674240056364,32.79,22.876,22.851,5.04943]
[1674240056907,17.0,22.875,22.851,5.04943]
[1674240057125,42.8,22.874,22.85,26.34]
[1674240057331,132.0771,22.873,22.843,10.0]
[1674240057527,32.8,22.872,22.845,39.26378027]
[1674240057745,10.0,22.87,22.846,20.0]
[1674240057956,10.0,22.868,22.846,20.0]
[1674240058165,32.81,22.867,22.845,39.26378027]
[1674240058587,32.81,22.867,22.845,44.31454027]
[1674240058797,10.0,22.866,22.845,44.31454027]
[1674240059018,32.81,22.865,22.845,5.05076]
[1674240059204,32.81,22.865,22.846,39.26378027]
[1674240059542,10.0,22.864,22.846,39.26378027]
[1674240059865,10.0,22.864,22.847,20.0]
[1674240060045,10.0,22.864,22.848,27.0]
[1674240060257,10.0,22.864,22.849,20.96]
[1674240060477,10.0,22.864,22.85,17.0]
[1674240060696,10.0,22.864,22.851,20.96]
[1674240060907,10.0,22.864,22.852,17.0]
[1674240061120,10.0,22.866,22.853,10.0]
[1674240061432,10.0,22.866,22.854,17.96]
[1674240061757,10.0,22.868,22.855,20.0]
[1674240061936,10.0,22.868,22.856,17.96]
[1674240062140,10.0,22.868,22.857,20.0]
[1674240062355,10.0,22.868,22.858,17.96]
[1674240062771,10.0,22.868,22.858,0.96]
[1674240063414,10.0,22.868,22.857,17.0]
[1674240063836,10.0,22.868,22.855,20.0]
[1674240064063,32.81,22.867,22.854,20.0]
[1674240064569,10.0,22.866,22.854,20.0]
[1674240066053,10.0,22.866,22.851,20.0]
[1674240066373,10.0,22.866,22.854,12.29025947]
[1674240066783,10.0,22.866,22.855,20.0]
[1674240067509,10.0,22.866,22.856,17.0]
[1674240067738,10.0,22.866,22.857,20.0]
[1674240068255,10.0,22.866,22.851,20.0]
[1674240068675,10.0,22.866,22.854,12.29025947]
[1674240068895,10.0,22.866,22.855,20.0]
[1674240069727,10.0,22.866,22.851,20.0]
[1674240070152,10.0,22.866,22.847,20.0]
[1674240070378,10.0,22.866,22.848,10.0]
[1674240070573,10.0,22.866,22.849,20.0]
[1674240071113,10.0,22.866,22.85,17.0]
[1674240071326,10.0,22.866,22.851,20.0]
[1674240072353,10.0,22.866,22.847,20.0]
[1674240072561,10.0,22.866,22.848,17.96]
[1674240072795,10.0,22.866,22.849,20.0]
[1674240073412,10.0,22.866,22.845,12.29025947]
[1674240073737,10.0,22.864,22.845,12.29025947]
[1674240074054,32.81,22.863,22.841,10.0]
[1674240074265,117.1968,22.863,22.845,39.26378027]
[1674240074577,117.1968,22.863,22.85,17.4]
[1674240074789,10.0,22.862,22.85,17.4]
[1674240074983,10.0,22.862,22.851,37.96]
[1674240075191,117.1968,22.863,22.852,10.0]
[1674240075404,117.1968,22.863,22.853,20.0]
[1674240075824,141.8593,22.869,22.855,10.0]
[1674240076028,109.0593,22.869,22.856,37.96]
[1674240076451,10.0,22.868,22.856,37.96]
[1674240076661,10.0,22.868,22.856,20.0]
[1674240077217,10.0,22.868,22.852,20.0]
[1674240077626,10.0,22.868,22.851,32.29025947]
[1674240078027,10.0,22.868,22.852,17.96]
[1674240078238,10.0,22.868,22.84,17.27]
[1674240078469,32.81,22.867,22.843,20.0]
[1674240078788,10.0,22.866,22.843,12.29025947]
[1674240078987,32.81,22.865,22.843,12.29025947]
[1674240079186,10.0,22.864,22.843,12.29025947]
[1674240079394,32.81,22.863,22.843,12.29025947]
[1674240079725,10.0,22.862,22.843,12.29025947]
[1674240080148,10.0,22.862,22.844,20.0]
[1674240080334,10.0,22.862,22.845,10.0]
[1674240080551,10.0,22.862,22.846,20.0]
[1674240080757,10.0,22.862,22.847,10.0]
[1674240080997,10.0,22.862,22.848,20.0]
[1674240081426,10.0,22.864,22.849,17.96]
[1674240081754,32.81,22.865,22.85,10.0]
[1674240081955,32.8,22.868,22.851,37.96]
[1674240082158,10.0,22.868,22.852,10.0]
[1674240082370,109.0593,22.869,22.853,17.0]
[1674240082574,109.0593,22.869,22.854,20.96]
[1674240082786,109.0593,22.869,22.855,27.0]
[1674240083011,109.0593,22.869,22.856,20.96]
[1674240083329,109.0593,22.869,22.858,10.0]
[1674240083524,42.8,22.872,22.859,17.96]
[1674240083740,10.0,22.872,22.86,20.0]
[1674240083955,142.7618,22.88,22.862,10.0]
[1674240084149,113.3822,22.883,22.87,17.4]
[1674240084359,17.4,22.91,22.871,37.96]
[1674240084578,113.3822,22.89,22.871,50.25025947]
[1674240084788,113.3822,22.89,22.872,10.0]
[1674240085008,113.3822,22.89,22.874,10.0]
[1674240085204,32.76,22.899,22.875,20.96]
[1674240085417,10.0,22.898,22.881,10.0]
[1674240085628,32.76,22.897,22.882,17.96]
[1674240085856,10.0,22.896,22.882,62.54051894]
[1674240086054,32.77,22.895,22.883,10.0]
[1674240086248,10.0,22.896,22.884,37.96]
[1674240087011,10.0,22.896,22.884,37.0]
[1674240087202,32.76,22.897,22.884,37.0]
[1674240087413,32.76,22.897,22.885,112.65481627]
[1674240087628,10.0,22.898,22.887,10.0]
[1674240087834,10.0,22.898,22.888,17.96]
[1674240088043,113.3822,22.899,22.888,17.96]
[1674240088262,32.75,22.908,22.89,17.37]
[1674240088498,119.7992,22.911,22.891,53.00061]
[1674240088794,32.74,22.91,22.892,15.04039]
[1674240089007,42.73,22.92,22.9,17.37]
[1674240089211,110.4423,22.919,22.902,10.0]
[1674240089421,42.73,22.918,22.903,20.0]
[1674240089631,42.73,22.918,22.904,17.0]
[1674240089953,42.73,22.918,22.9,17.37]
[1674240090260,32.73,22.918,22.9,17.37]
[1674240090469,10.0,22.923,22.91,17.4]
[1674240090685,36.73,22.92,22.91,17.4]
[1674240091087,10.0,22.919,22.91,17.4]
[1674240091297,10.0,22.919,22.902,10.0]
[1674240091509,10.0,22.919,22.91,17.37]
[1674240091718,97.8336913,22.921,22.91,17.37]
[1674240091946,32.73,22.92,22.91,17.37]
[1674240092145,32.73,22.92,22.911,17.0]
[1674240092350,10.0,22.919,22.909,64.80445269]
[1674240092994,32.73,22.918,22.9,17.37]
[1674240093200,32.73,22.918,22.901,20.0]
[1674240093403,10.0,22.917,22.901,20.0]
[1674240093610,32.74,22.916,22.901,20.0]
[1674240094044,10.0,22.915,22.901,20.0]
[1674240094884,10.0,22.915,22.897,52.31765409]
[1674240095196,10.0,22.913,22.89,17.27]
[1674240095418,32.74,22.912,22.891,5.04061]
[1674240095607,10.0,22.911,22.891,5.04061]
[1674240095825,32.74,22.91,22.9,17.4]
[1674240096041,10.0,22.911,22.9,17.4]
[1674240096662,10.0,22.911,22.892,55.38432076]
[1674240096879,32.74,22.91,22.9,17.37]
[1674240097120,10.0,22.911,22.9,17.37]
[1674240098262,10.0,22.911,22.901,17.0]
[1674240098579,42.74,22.912,22.9,17.37]
[1674240098795,126.0374,22.913,22.901,37.0]
[1674240099398,126.0374,22.913,22.9,17.37]
[1674240099616,126.0374,22.913,22.901,20.0]
[1674240099948,10.0,22.911,22.893,45.38432076]
[1674240100262,10.0,22.909,22.893,45.38432076]
[1674240100476,10.0,22.907,22.893,45.38432076]
[1674240101088,10.0,22.907,22.894,10.0]
[1674240101405,10.0,22.907,22.894,55.38432076]
[1674240101928,10.0,22.908,22.894,55.38432076]
[1674240102138,10.0,22.908,22.895,20.0]
[1674240102359,10.0,22.912,22.9,17.4]
[1674240102766,10.0,22.912,22.901,20.0]
[1674240104055,10.0,22.912,22.9,17.4]
[1674240104235,32.74,22.911,22.896,45.38432076]
[1674240104572,10.0,22.91,22.89,17.26]
[1674240104789,10.0,22.908,22.89,17.26]
[1674240104995,10.0,22.908,22.88,69.57]
[1674240104996,32.75,22.907,22.889,45.38432076]
[1674240105181,10.0,22.906,22.889,45.38432076]
[1674240105394,10.0,22.906,22.891,45.38432076]
[1674240105820,10.0,22.906,22.88,17.34]
[1674240106050,145.3458,22.905,22.88,17.34]
[1674240106254,10.0,22.904,22.884,45.38432076]
[1674240106468,32.75,22.903,22.885,10.0]
[1674240107095,10.0,22.92,22.891,10.0]
[1674240107328,112.5958,22.911,22.89,17.4]
[1674240107507,42.74,22.91,22.891,17.0]
[1674240107715,42.74,22.91,22.886,50.42603076]
[1674240107923,42.74,22.91,22.886,45.38432076]
[1674240108135,10.0,22.909,22.886,45.38432076]
[1674240108347,10.0,22.907,22.89,17.37]
[1674240108565,10.0,22.907,22.891,54.78675409]
[1674240109097,10.0,22.907,22.891,94.9794768]
[1674240109306,10.0,22.907,22.892,0.96]
[1674240109512,10.0,22.907,22.892,17.0]
[1674240109721,10.0,22.907,22.893,20.0]
[1674240109930,10.0,22.907,22.894,17.0]
[1674240110248,10.0,22.907,22.895,20.0]
[1674240110570,10.0,22.909,22.895,20.0]
[1674240110775,10.0,22.909,22.896,17.0]
[1674240110986,10.0,22.912,22.896,17.0]
[1674240110987,32.74,22.912,22.9,17.4]
[1674240111208,116.0374,22.913,22.902,10.0]
[1674240111610,116.0374,22.913,22.903,37.0]
[1674240111823,10.0,22.912,22.903,37.0]
[1674240112355,10.0,22.912,22.903,20.0]
[1674240112561,10.0,22.912,22.9,17.4]
[1674240112782,42.74,22.912,22.89,17.4]
[1674240113183,10.0,22.911,22.89,17.4]
[1674240113396,32.74,22.91,22.89,17.4]
[1674240113628,10.0,22.909,22.89,17.4]
[1674240113830,32.75,22.908,22.89,62.18675409]
[1674240114041,10.0,22.907,22.89,62.18675409]
[1674240114674,10.0,22.905,22.89,44.78675409]
[1674240114873,32.75,22.904,22.89,44.78675409]
[1674240115083,10.0,22.903,22.89,44.78675409]
[1674240117493,10.0,22.904,22.891,17.0]
[1674240117705,110.596,22.906,22.891,17.0]
[1674240118023,110.596,22.906,22.892,10.96]
[1674240118239,110.596,22.906,22.894,10.0]
[1674240118558,110.596,22.906,22.895,37.0]
[1674240118774,110.596,22.906,22.896,10.0]
[1674240120241,32.74,22.912,22.901,10.0]
[1674240120439,142.3294,22.916,22.902,20.0]
[1674240120645,109.5894,22.916,22.903,17.0]
[1674240121072,109.5894,22.916,22.904,20.0]
[1674240121498,10.0,22.912,22.904,20.0]
[1674240121716,10.0,22.912,22.902,20.0]
[1674240121927,10.0,22.912,22.905,12.99941178]
[1674240122121,10.0,22.912,22.906,20.0]
[1674240122971,10.0,22.912,22.906,32.99941178]
[1674240123796,10.0,22.912,22.9,25.82]
[1674240124223,10.0,22.912,22.901,12.99941178]
[1674240124969,116.0374,22.913,22.901,12.99941178]
[1674240125177,116.0374,22.913,22.902,10.0]
[1674240125392,116.0374,22.913,22.903,17.0]
[1674240125611,116.0374,22.913,22.904,20.0]
[1674240125812,116.0374,22.913,22.905,17.0]
[1674240126020,116.0374,22.913,22.906,20.0]
[1674240126347,119.5894,22.916,22.906,20.0]
[1674240126348,0.35366385,22.912,22.906,20.0]
[1674240126549,0.35366385,22.912,22.907,17.0]
[1674240126873,0.35366385,22.912,22.907,29.99941178]
[1674240127698,0.35366385,22.912,22.908,12.99941178]
[1674240127905,0.35366385,22.912,22.909,17.0]
[1674240128328,0.35366385,22.912,22.91,12.99941178]
[1674240128748,87.8336913,22.921,22.912,10.0]
[1674240129056,87.8336913,22.921,22.914,10.0]
[1674240129282,19.4397913,22.921,22.915,20.0]
[1674240129512,19.4397913,22.921,22.916,22.99511]
[1674240129711,19.4397913,22.921,22.916,35.99452178]
[1674240130117,19.4397913,22.921,22.917,12.99941178]
[1674240130332,19.4397913,22.921,22.918,27.0]
[1674240130639,19.4397913,22.921,22.919,13.95941178]
[1674240130853,19.4397913,22.921,22.92,17.0]
[1674240131061,19.4397913,22.921,22.92,17.96]
[1674240131265,19.4397913,22.921,22.92,85.74616587]
[1674240131894,19.4397913,22.921,22.92,70.78557765]
[1674240132106,19.4397913,22.921,22.92,57.78616587]
[1674240133373,19.4397913,22.921,22.92,74.78616587]
[1674240133998,19.4397913,22.921,22.92,110.89827858]
[1674240134231,0.0097913,22.921,22.92,130.89827858]
[1674240134442,0.0097913,22.921,22.92,135.93250858]
[1674240135053,10.0,22.937,22.921,10.0]
[1674240135283,32.7,22.939,22.923,10.0]
[1674240135488,10.0,22.94,22.93,25.9]
[1674240135814,14.958746,22.936,22.93,25.9]
[1674240136339,10.0,22.938,22.93,70.68675409]
[1674240136650,10.0,22.938,22.931,0.96]
[1674240136963,10.0,22.943,22.931,0.96]
[1674240137153,32.7,22.942,22.931,10.96]
[1674240137371,10.0,22.945,22.932,94.90245664]
[1674240137372,32.69,22.945,22.932,94.90245664]
[1674240137582,32.68,22.953,22.94,26.01]
[1674240137790,32.68,22.953,22.941,10.96]
[1674240138011,10.0,22.952,22.942,17.0]
[1674240138222,32.69,22.951,22.943,10.0]
[1674240138646,32.69,22.951,22.944,41.27944587]
[1674240138859,10.0,22.95,22.944,41.27944587]
[1674240139070,32.69,22.949,22.943,53.48193409]
[1674240139276,10.0,22.948,22.943,53.48193409]
[1674240140316,32.69,22.947,22.943,53.48193409]
[1674240140961,32.69,22.947,22.933,5.03137]
[1674240141172,10.0,22.946,22.92,25.82]
[1674240141385,33.65,22.945,22.92,25.82]
[1674240141888,27.0,22.944,22.913,10.0]
[1674240142099,26.01,22.94,22.915,45.15730314]
[1674240142311,32.7,22.939,22.915,45.15730314]
[1674240142536,17.0,22.938,22.915,45.15730314]
[1674240142743,32.71,22.937,22.915,45.15730314]
[1674240143061,27.96,22.936,22.91,25.82]
[1674240143278,10.0,22.934,22.906,10.0]